[Event "Titled Tuesday Blitz March 22 Early 2022"]
[White "Abarca Gonzalez, Nicolas"]
[Black "Manukian, Artak"]
[WhiteFideId "3409422"]
[BlackFideId "13301373"]
[WhiteElo "2504"]
[BlackElo "2454"]
[Result "1-0"]
[Round "01"]
[TimeControl "180+1"]
[Date "2022.03.22"]
[WhiteClock "0:00:12"]
[BlackClock "0:00:03"]

1. e4 {[%clk 0:02:59]}  c6 {[%clk 0:02:59]} 2. d4 {[%clk 0:02:55]}  d5 {[%clk 0:02:59]} 3. exd5 {[%clk 0:02:54]}  cxd5 {[%clk 0:02:59]} 4. c4 {[%clk 0:02:55]}  Nf6 {[%clk 0:02:58]} 5. Nc3 {[%clk 0:02:54]}  g6 {[%clk 0:02:57]} 6. cxd5 {[%clk 0:02:31]}  Bg7 {[%clk 0:02:58]} 7. Bc4 {[%clk 0:02:31]}  O-O {[%clk 0:02:59]} 8. Nf3 {[%clk 0:02:28]}  Nbd7 {[%clk 0:02:59]} 9. O-O {[%clk 0:02:28]}  Nb6 {[%clk 0:03:00]} 10. Qb3 {[%clk 0:02:28]}  Bf5 {[%clk 0:02:58]} 11. Re1 {[%clk 0:02:22]}  Rc8 {[%clk 0:02:57]} 12. Bf1 {[%clk 0:02:21]}  Nfxd5 {[%clk 0:02:47]} 13. Bg5 {[%clk 0:02:18]}  h6 {[%clk 0:02:41]} 14. Bh4 {[%clk 0:02:11]}  g5 {[%clk 0:02:28]} 15. Bg3 {[%clk 0:02:10]}  e6 {[%clk 0:02:13]} 16. Ne5 {[%clk 0:01:23]}  Nxc3 {[%clk 0:02:05]} 17. bxc3 {[%clk 0:01:22]}  Qd5 {[%clk 0:02:06]} 18. Qa3 {[%clk 0:01:18]}  Ra8 {[%clk 0:01:27]} 19. Rad1 {[%clk 0:01:17]}  Rfc8 {[%clk 0:01:20]} 20. c4 {[%clk 0:01:17]}  Qd8 {[%clk 0:01:18]} 21. d5 {[%clk 0:01:16]}  exd5 {[%clk 0:01:14]} 22. cxd5 {[%clk 0:01:17]}  Nd7 {[%clk 0:01:08]} 23. Nc4 {[%clk 0:01:05]}  Bf8 {[%clk 0:01:04]} 24. Qf3 {[%clk 0:01:00]}  Bg6 {[%clk 0:01:00]} 25. Nd6 {[%clk 0:00:58]}  Bxd6 {[%clk 0:00:59]} 26. Bxd6 {[%clk 0:00:58]}  Qf6 {[%clk 0:01:00]} 27. Qg3 {[%clk 0:00:56]}  Re8 {[%clk 0:00:56]} 28. Bb5 {[%clk 0:00:43]}  Rxe1+ {[%clk 0:00:54]} 29. Rxe1 {[%clk 0:00:44]}  Nf8 {[%clk 0:00:53]} 30. Be5 {[%clk 0:00:36]}  Qb6 {[%clk 0:00:52]} 31. Ba1 {[%clk 0:00:31]}  Nh7 {[%clk 0:00:31]} 32. Qc3 {[%clk 0:00:24]}  f6 {[%clk 0:00:29]} 33. Bc4 {[%clk 0:00:24]}  Bf7 {[%clk 0:00:21]} 34. h4 {[%clk 0:00:24]}  Rc8 {[%clk 0:00:20]} 35. hxg5 {[%clk 0:00:22]}  hxg5 {[%clk 0:00:20]} 36. Qd3 {[%clk 0:00:19]}  Qb4 {[%clk 0:00:16]} 37. Rc1 {[%clk 0:00:19]}  Qd6 {[%clk 0:00:16]} 38. Bb2 {[%clk 0:00:14]}  Kg7 {[%clk 0:00:14]} 39. Bb3 {[%clk 0:00:14]}  Rxc1+ {[%clk 0:00:13]} 40. Bxc1 {[%clk 0:00:15]}  Bg6 {[%clk 0:00:13]} 41. Qe3 {[%clk 0:00:13]}  Nf8 {[%clk 0:00:12]} 42. Bb2 {[%clk 0:00:13]}  Nd7 {[%clk 0:00:12]} 43. Qxg5 {[%clk 0:00:12]}  Ne5 {[%clk 0:00:11]} 44. Qg3 {[%clk 0:00:08]}  Kf7 {[%clk 0:00:08]} 45. Qe3 {[%clk 0:00:07]}  b6 {[%clk 0:00:08]} 46. f3 {[%clk 0:00:06]}  Bf5 {[%clk 0:00:04]} 47. g4 {[%clk 0:00:06]}  Bd7 {[%clk 0:00:03]} 48. Kf2 {[%clk 0:00:07]}  Bb5 {[%clk 0:00:03]} 49. Qh6 {[%clk 0:00:06]}  Nd3+ {[%clk 0:00:03]} 50. Ke3 {[%clk 0:00:07]}  Qe7+ {[%clk 0:00:04]} 51. Kd2 {[%clk 0:00:06]}  Qb4+ {[%clk 0:00:04]} 52. Bc3 {[%clk 0:00:06]}  Qf4+ {[%clk 0:00:05]} 53. Qxf4 {[%clk 0:00:07]}  Nxf4 {[%clk 0:00:06]} 54. d6+ {[%clk 0:00:07]}  Ke8 {[%clk 0:00:06]} 55. Ke3 {[%clk 0:00:08]}  Nd5+ {[%clk 0:00:05]} 56. Bxd5 {[%clk 0:00:08]}  Kd7 {[%clk 0:00:04]} 57. Bxf6 {[%clk 0:00:09]}  Kxd6 {[%clk 0:00:04]} 58. Bb3 {[%clk 0:00:09]}  Bd7 {[%clk 0:00:04]} 59. Bh4 {[%clk 0:00:10]}  a5 {[%clk 0:00:03]} 60. Bg3+ {[%clk 0:00:11]}  Kc5 {[%clk 0:00:03]} 61. g5 {[%clk 0:00:11]}  b5 {[%clk 0:00:03]} 62. Bc2 {[%clk 0:00:11]}  Be6 {[%clk 0:00:03]} 63. Bb1 {[%clk 0:00:11]}  Kb4 {[%clk 0:00:02]} 64. f4 {[%clk 0:00:12]}  Kc3 {[%clk 0:00:03]} 65. f5 {[%clk 0:00:12]}  Bg8 {[%clk 0:00:03]} 66. Be5+ {[%clk 0:00:12]} 1-0


[Site "https://www.chess.com"]

[Event "Titled Tuesday Blitz March 22 Early 2022"]
[White "Akobian, Varuzhan"]
[Black "Ladan, Nicholas"]
[WhiteFideId "13300580"]
[BlackFideId "30918855"]
[WhiteElo "2634"]
[BlackElo "2167"]
[Result "1-0"]
[Round "01"]
[TimeControl "180+1"]
[Date "2022.03.22"]
[WhiteClock "0:00:22"]
[BlackClock "0:00:05"]

1. d4 {[%clk 0:02:53]}  d6 {[%clk 0:02:59]} 2. Nf3 {[%clk 0:02:52]}  g6 {[%clk 0:02:59]} 3. c4 {[%clk 0:02:50]}  Bg7 {[%clk 0:02:59]} 4. Nc3 {[%clk 0:02:48]}  Nf6 {[%clk 0:02:59]} 5. Bg5 {[%clk 0:02:48]}  b6 {[%clk 0:02:54]} 6. e3 {[%clk 0:02:47]}  Bb7 {[%clk 0:02:54]} 7. Be2 {[%clk 0:02:47]}  Nbd7 {[%clk 0:02:54]} 8. O-O {[%clk 0:02:47]}  h6 {[%clk 0:02:53]} 9. Bh4 {[%clk 0:02:46]}  O-O {[%clk 0:02:47]} 10. Qc2 {[%clk 0:02:46]}  g5 {[%clk 0:02:37]} 11. Bg3 {[%clk 0:02:45]}  e6 {[%clk 0:02:25]} 12. h3 {[%clk 0:02:45]}  Nh7 {[%clk 0:02:19]} 13. d5 {[%clk 0:02:39]}  e5 {[%clk 0:02:16]} 14. Bd3 {[%clk 0:02:38]}  Nhf6 {[%clk 0:02:07]} 15. Bf5 {[%clk 0:02:35]}  a5 {[%clk 0:01:53]} 16. a3 {[%clk 0:02:33]}  Ba6 {[%clk 0:01:46]} 17. b3 {[%clk 0:02:29]}  Re8 {[%clk 0:01:36]} 18. Nd2 {[%clk 0:02:27]}  Qe7 {[%clk 0:01:31]} 19. Rab1 {[%clk 0:02:06]}  Nh5 {[%clk 0:00:54]} 20. Bh2 {[%clk 0:02:05]}  Bf8 {[%clk 0:00:47]} 21. Nde4 {[%clk 0:01:43]}  Ng7 {[%clk 0:00:43]} 22. Bxd7 {[%clk 0:01:42]}  f5 {[%clk 0:00:37]} 23. Bxe8 {[%clk 0:01:37]}  Rxe8 {[%clk 0:00:34]} 24. Ng3 {[%clk 0:01:27]}  f4 {[%clk 0:00:32]} 25. Nge4 {[%clk 0:01:17]}  Bc8 {[%clk 0:00:30]} 26. exf4 {[%clk 0:01:12]}  gxf4 {[%clk 0:00:29]} 27. f3 {[%clk 0:01:08]}  Nf5 {[%clk 0:00:26]} 28. Rbe1 {[%clk 0:00:57]}  Qg7 {[%clk 0:00:23]} 29. Kh1 {[%clk 0:00:53]}  Qg6 {[%clk 0:00:18]} 30. Qf2 {[%clk 0:00:50]}  Re7 {[%clk 0:00:18]} 31. Rg1 {[%clk 0:00:46]}  Rg7 {[%clk 0:00:14]} 32. g3 {[%clk 0:00:46]}  fxg3 {[%clk 0:00:09]} 33. Nxg3 {[%clk 0:00:44]}  Nh4 {[%clk 0:00:06]} 34. Nge4 {[%clk 0:00:38]}  Qf5 {[%clk 0:00:06]} 35. Rxg7+ {[%clk 0:00:34]}  Bxg7 {[%clk 0:00:07]} 36. Rg1 {[%clk 0:00:27]}  Kh8 {[%clk 0:00:05]} 37. Qg3 {[%clk 0:00:22]} 1-0


[Site "https://www.chess.com"]

[Event "Titled Tuesday Blitz March 22 Early 2022"]
[White "Aldokhin, Ivan"]
[Black "Cupid, Kevin"]
[WhiteFideId "24115720"]
[BlackFideId "7700512"]
[WhiteElo "2231"]
[BlackElo "2096"]
[Result "1-0"]
[Round "01"]
[TimeControl "180+1"]
[Date "2022.03.22"]
[WhiteClock "0:00:23"]
[BlackClock "0:00:02"]

1. e4 {[%clk 0:02:52]}  c6 {[%clk 0:02:49]} 2. Nc3 {[%clk 0:02:52]}  d5 {[%clk 0:02:49]} 3. Nf3 {[%clk 0:02:52]}  Bg4 {[%clk 0:02:48]} 4. Be2 {[%clk 0:02:52]}  e6 {[%clk 0:02:48]} 5. O-O {[%clk 0:02:51]}  Nf6 {[%clk 0:02:44]} 6. Ne5 {[%clk 0:02:41]}  Bxe2 {[%clk 0:02:35]} 7. Qxe2 {[%clk 0:02:42]}  Nbd7 {[%clk 0:02:21]} 8. Nxd7 {[%clk 0:02:42]}  Nxd7 {[%clk 0:02:21]} 9. exd5 {[%clk 0:02:41]}  cxd5 {[%clk 0:02:21]} 10. Nxd5 {[%clk 0:02:41]}  Bd6 {[%clk 0:02:21]} 11. d4 {[%clk 0:02:32]}  O-O {[%clk 0:02:20]} 12. Bf4 {[%clk 0:02:28]}  Bxf4 {[%clk 0:02:10]} 13. Nxf4 {[%clk 0:02:28]}  Qb6 {[%clk 0:02:09]} 14. c3 {[%clk 0:02:26]}  Rfe8 {[%clk 0:02:07]} 15. Rfe1 {[%clk 0:02:24]}  h6 {[%clk 0:01:52]} 16. Nd3 {[%clk 0:02:15]}  a5 {[%clk 0:01:47]} 17. Qh5 {[%clk 0:01:51]}  a4 {[%clk 0:01:41]} 18. a3 {[%clk 0:01:39]}  Ra5 {[%clk 0:01:23]} 19. Qh4 {[%clk 0:01:30]}  Qb3 {[%clk 0:01:07]} 20. Re3 {[%clk 0:01:26]}  Rg5 {[%clk 0:00:55]} 21. Rae1 {[%clk 0:01:16]}  Ra8 {[%clk 0:00:50]} 22. Rg3 {[%clk 0:01:06]}  Qc2 {[%clk 0:00:43]} 23. Qe4 {[%clk 0:00:54]}  Rxg3 {[%clk 0:00:38]} 24. hxg3 {[%clk 0:00:53]}  Rb8 {[%clk 0:00:11]} 25. Ne5 {[%clk 0:00:47]}  Qxe4 {[%clk 0:00:09]} 26. Rxe4 {[%clk 0:00:48]}  Nf6 {[%clk 0:00:08]} 27. Re2 {[%clk 0:00:48]}  Kf8 {[%clk 0:00:09]} 28. f3 {[%clk 0:00:47]}  Ke7 {[%clk 0:00:09]} 29. Kf2 {[%clk 0:00:47]}  Nd5 {[%clk 0:00:09]} 30. c4 {[%clk 0:00:46]}  Nc7 {[%clk 0:00:09]} 31. Ke3 {[%clk 0:00:46]}  Rd8 {[%clk 0:00:08]} 32. Rc2 {[%clk 0:00:31]}  f6 {[%clk 0:00:08]} 33. Nd3 {[%clk 0:00:29]}  Rd6 {[%clk 0:00:06]} 34. Nb4 {[%clk 0:00:28]}  Kd7 {[%clk 0:00:04]} 35. c5 {[%clk 0:00:26]}  Nd5+ {[%clk 0:00:03]} 36. Nxd5 {[%clk 0:00:23]}  Rxd5 {[%clk 0:00:02]} 37. Rc4 {[%clk 0:00:23]}  e5 {[%clk 0:00:02]} 38. Rxa4 {[%clk 0:00:23]} 1-0


[Site "https://www.chess.com"]

[Event "Titled Tuesday Blitz March 22 Early 2022"]
[White "Altman, Joshua"]
[Black "Piliczewski, Bogusz"]
[WhiteFideId "426210"]
[BlackFideId "1104144"]
[WhiteElo "1945"]
[BlackElo "1896"]
[Result "1-0"]
[Round "01"]
[TimeControl "180+1"]
[Date "2022.03.22"]
[WhiteClock "0:02:44"]
[BlackClock "0:02:05"]

1. d4 {[%clk 0:03:00]}  c6 {[%clk 0:03:00]} 2. c4 {[%clk 0:03:00]}  d5 {[%clk 0:03:00]} 3. cxd5 {[%clk 0:03:01]}  cxd5 {[%clk 0:02:59]} 4. Nf3 {[%clk 0:03:01]}  Nf6 {[%clk 0:02:59]} 5. Nc3 {[%clk 0:03:02]}  Nc6 {[%clk 0:02:59]} 6. Bf4 {[%clk 0:03:03]}  a6 {[%clk 0:02:59]} 7. Rc1 {[%clk 0:03:03]}  Bf5 {[%clk 0:02:59]} 8. e3 {[%clk 0:03:03]}  e6 {[%clk 0:02:59]} 9. Qb3 {[%clk 0:03:04]}  Qd7 {[%clk 0:02:51]} 10. Be2 {[%clk 0:02:58]}  Be7 {[%clk 0:02:49]} 11. O-O {[%clk 0:02:58]}  O-O {[%clk 0:02:48]} 12. Na4 {[%clk 0:02:58]}  Bd8 {[%clk 0:02:24]} 13. Nc5 {[%clk 0:02:57]}  Qe7 {[%clk 0:02:13]} 14. Qxb7 {[%clk 0:02:49]}  Na5 {[%clk 0:02:05]} 15. Qxa8 {[%clk 0:02:44]} 1-0


[Site "https://www.chess.com"]

[Event "Titled Tuesday Blitz March 22 Early 2022"]
[White "Begunov, Konstantin"]
[Black "Mikhailovsky, Vladimir"]
[WhiteFideId "4118510"]
[BlackFideId "34105414"]
[WhiteElo "2262"]
[BlackElo "2371"]
[Result "0-1"]
[Round "01"]
[TimeControl "180+1"]
[Date "2022.03.22"]
[WhiteClock "0:00:14"]
[BlackClock "0:00:24"]

1. d4 {[%clk 0:02:59]}  Nf6 {[%clk 0:02:56]} 2. c4 {[%clk 0:02:59]}  e6 {[%clk 0:02:55]} 3. Nf3 {[%clk 0:02:59]}  d5 {[%clk 0:02:55]} 4. Nc3 {[%clk 0:02:59]}  c5 {[%clk 0:02:52]} 5. cxd5 {[%clk 0:02:59]}  Nxd5 {[%clk 0:02:49]} 6. g3 {[%clk 0:02:59]}  Nxc3 {[%clk 0:02:46]} 7. bxc3 {[%clk 0:02:59]}  cxd4 {[%clk 0:02:46]} 8. cxd4 {[%clk 0:02:59]}  Bb4+ {[%clk 0:02:46]} 9. Bd2 {[%clk 0:02:58]}  Bxd2+ {[%clk 0:02:47]} 10. Qxd2 {[%clk 0:02:59]}  b6 {[%clk 0:02:43]} 11. Bg2 {[%clk 0:02:58]}  Bb7 {[%clk 0:02:43]} 12. O-O {[%clk 0:02:56]}  O-O {[%clk 0:02:43]} 13. Rfd1 {[%clk 0:02:52]}  Nd7 {[%clk 0:02:36]} 14. a4 {[%clk 0:02:45]}  a5 {[%clk 0:02:17]} 15. Rab1 {[%clk 0:02:42]}  Rb8 {[%clk 0:02:15]} 16. Rb2 {[%clk 0:02:30]}  Nf6 {[%clk 0:02:12]} 17. e3 {[%clk 0:02:09]}  Nd5 {[%clk 0:02:03]} 18. Ne5 {[%clk 0:02:09]}  Nb4 {[%clk 0:02:03]} 19. Bxb7 {[%clk 0:02:03]}  Rxb7 {[%clk 0:02:04]} 20. Nd3 {[%clk 0:02:03]}  Nd5 {[%clk 0:01:54]} 21. Rc1 {[%clk 0:01:42]}  Qd7 {[%clk 0:01:17]} 22. Rcb1 {[%clk 0:01:30]}  Rc7 {[%clk 0:01:14]} 23. e4 {[%clk 0:00:20]}  Nc3 {[%clk 0:01:11]} 24. Rc1 {[%clk 0:00:20]}  Qxd4 {[%clk 0:00:58]} 25. Rbc2 {[%clk 0:00:19]}  Nxe4 {[%clk 0:00:57]} 26. Qe2 {[%clk 0:00:17]}  Nc3 {[%clk 0:00:42]} 27. Qd2 {[%clk 0:00:16]}  Rfc8 {[%clk 0:00:42]} 28. Qe3 {[%clk 0:00:15]}  Qxe3 {[%clk 0:00:39]} 29. fxe3 {[%clk 0:00:16]}  Ne2+ {[%clk 0:00:38]} 30. Rxe2 {[%clk 0:00:14]}  Rxc1+ {[%clk 0:00:39]} 31. Nxc1 {[%clk 0:00:15]}  Rxc1+ {[%clk 0:00:40]} 32. Kf2 {[%clk 0:00:15]}  Rc4 {[%clk 0:00:36]} 33. Rb2 {[%clk 0:00:15]}  Rb4 {[%clk 0:00:35]} 34. Rxb4 {[%clk 0:00:15]}  axb4 {[%clk 0:00:35]} 35. Ke2 {[%clk 0:00:16]}  Kf8 {[%clk 0:00:30]} 36. Kd3 {[%clk 0:00:17]}  Ke7 {[%clk 0:00:31]} 37. Kc4 {[%clk 0:00:17]}  Kd6 {[%clk 0:00:31]} 38. Kxb4 {[%clk 0:00:18]}  Kc6 {[%clk 0:00:32]} 39. Kc4 {[%clk 0:00:18]}  f6 {[%clk 0:00:32]} 40. e4 {[%clk 0:00:18]}  g6 {[%clk 0:00:31]} 41. g4 {[%clk 0:00:18]}  f5 {[%clk 0:00:31]} 42. gxf5 {[%clk 0:00:15]}  gxf5 {[%clk 0:00:31]} 43. exf5 {[%clk 0:00:14]}  exf5 {[%clk 0:00:32]} 44. Kd4 {[%clk 0:00:14]}  f4 {[%clk 0:00:31]} 45. h4 {[%clk 0:00:13]}  f3 {[%clk 0:00:26]} 46. Ke3 {[%clk 0:00:13]}  Kc5 {[%clk 0:00:27]} 47. Kxf3 {[%clk 0:00:13]}  Kb4 {[%clk 0:00:27]} 48. Kf4 {[%clk 0:00:14]}  Kxa4 {[%clk 0:00:28]} 49. Kg5 {[%clk 0:00:15]}  b5 {[%clk 0:00:29]} 50. Kh6 {[%clk 0:00:16]}  b4 {[%clk 0:00:29]} 51. Kxh7 {[%clk 0:00:16]}  b3 {[%clk 0:00:30]} 52. h5 {[%clk 0:00:17]}  b2 {[%clk 0:00:31]} 53. h6 {[%clk 0:00:18]}  b1=Q+ {[%clk 0:00:32]} 54. Kg7 {[%clk 0:00:17]}  Qg1+ {[%clk 0:00:32]} 55. Kh8 {[%clk 0:00:17]}  Qd4+ {[%clk 0:00:25]} 56. Kg8 {[%clk 0:00:17]}  Qg4+ {[%clk 0:00:25]} 57. Kh8 {[%clk 0:00:17]}  Qc8+ {[%clk 0:00:23]} 58. Kg7 {[%clk 0:00:16]}  Qd7+ {[%clk 0:00:23]} 59. Kg8 {[%clk 0:00:16]}  Qd8+ {[%clk 0:00:24]} 60. Kg7 {[%clk 0:00:17]}  Qg5+ {[%clk 0:00:24]} 61. Kh7 {[%clk 0:00:14]}  Kb5 {[%clk 0:00:24]} 0-1


[Site "https://www.chess.com"]

[Event "Titled Tuesday Blitz March 22 Early 2022"]
[White "Bodnaruk, Anastasia"]
[Black "Dahlgren, James Allen"]
[WhiteFideId "4181751"]
[BlackFideId "22256873"]
[WhiteElo "2393"]
[BlackElo "2106"]
[Result "1-0"]
[Round "01"]
[TimeControl "180+1"]
[Date "2022.03.22"]
[WhiteClock "0:01:08"]
[BlackClock "0:01:03"]

1. e4 {[%clk 0:03:00]}  e6 {[%clk 0:02:56]} 2. d4 {[%clk 0:03:00]}  c5 {[%clk 0:02:52]} 3. d5 {[%clk 0:02:53]}  Nf6 {[%clk 0:02:52]} 4. Nc3 {[%clk 0:02:52]}  d6 {[%clk 0:02:51]} 5. Nf3 {[%clk 0:02:47]}  e5 {[%clk 0:02:48]} 6. Be2 {[%clk 0:02:45]}  Be7 {[%clk 0:02:47]} 7. O-O {[%clk 0:02:43]}  O-O {[%clk 0:02:48]} 8. a4 {[%clk 0:02:38]}  Ne8 {[%clk 0:02:42]} 9. Nd2 {[%clk 0:02:31]}  f5 {[%clk 0:02:42]} 10. f3 {[%clk 0:02:25]}  Bg5 {[%clk 0:02:42]} 11. Nc4 {[%clk 0:02:22]}  Bxc1 {[%clk 0:02:39]} 12. Qxc1 {[%clk 0:02:22]}  f4 {[%clk 0:02:36]} 13. a5 {[%clk 0:02:17]}  g5 {[%clk 0:02:30]} 14. Na2 {[%clk 0:01:56]}  b5 {[%clk 0:02:22]} 15. axb6 {[%clk 0:01:55]}  axb6 {[%clk 0:02:22]} 16. b4 {[%clk 0:01:47]}  Na6 {[%clk 0:02:05]} 17. Qb2 {[%clk 0:01:20]}  Nf6 {[%clk 0:01:55]} 18. bxc5 {[%clk 0:01:17]}  bxc5 {[%clk 0:01:39]} 19. Qb6 {[%clk 0:01:16]}  Qxb6 {[%clk 0:01:03]} 20. Nxb6 {[%clk 0:01:16]}  Ra7 {[%clk 0:01:03]} 21. Nc3 {[%clk 0:01:08]} 1-0


[Site "https://www.chess.com"]

[Event "Titled Tuesday Blitz March 22 Early 2022"]
[White "Bortnyk, Olexandr"]
[Black "Bethke, Richard"]
[WhiteFideId "14120828"]
[BlackFideId "12959243"]
[WhiteElo "2723"]
[BlackElo "2526"]
[Result "1-0"]
[Round "01"]
[TimeControl "180+1"]
[Date "2022.03.22"]
[WhiteClock "0:00:16"]
[BlackClock "0:00:08"]

1. d4 {[%clk 0:02:03]}  Nf6 {[%clk 0:03:00]} 2. Nc3 {[%clk 0:02:02]}  d5 {[%clk 0:02:59]} 3. Bf4 {[%clk 0:02:01]}  a6 {[%clk 0:02:59]} 4. e3 {[%clk 0:02:01]}  e6 {[%clk 0:02:58]} 5. Nf3 {[%clk 0:02:00]}  c5 {[%clk 0:02:59]} 6. a3 {[%clk 0:02:00]}  Nc6 {[%clk 0:02:57]} 7. h3 {[%clk 0:02:00]}  b5 {[%clk 0:02:53]} 8. dxc5 {[%clk 0:01:59]}  Bxc5 {[%clk 0:02:52]} 9. Bd3 {[%clk 0:01:59]}  O-O {[%clk 0:02:50]} 10. O-O {[%clk 0:01:59]}  Re8 {[%clk 0:02:48]} 11. e4 {[%clk 0:01:59]}  d4 {[%clk 0:02:37]} 12. e5 {[%clk 0:01:59]}  dxc3 {[%clk 0:02:27]} 13. exf6 {[%clk 0:01:59]}  cxb2 {[%clk 0:02:25]} 14. Rb1 {[%clk 0:01:22]}  Qxf6 {[%clk 0:02:23]} 15. Bg5 {[%clk 0:01:21]}  Qc3 {[%clk 0:02:23]} 16. Bd2 {[%clk 0:01:21]}  Qf6 {[%clk 0:02:21]} 17. Bg5 {[%clk 0:01:20]}  Qc3 {[%clk 0:02:21]} 18. Bd2 {[%clk 0:01:19]}  Qf6 {[%clk 0:02:21]} 19. Ng5 {[%clk 0:01:16]}  h6 {[%clk 0:02:07]} 20. Ne4 {[%clk 0:01:11]}  Qe7 {[%clk 0:02:07]} 21. Bxh6 {[%clk 0:01:08]}  gxh6 {[%clk 0:02:05]} 22. Qg4+ {[%clk 0:01:08]}  Kf8 {[%clk 0:02:05]} 23. Qh5 {[%clk 0:01:07]}  Bd4 {[%clk 0:02:05]} 24. Qxh6+ {[%clk 0:01:07]}  Bg7 {[%clk 0:02:05]} 25. Qh5 {[%clk 0:01:06]}  Ne5 {[%clk 0:01:59]} 26. f4 {[%clk 0:00:53]}  Nxd3 {[%clk 0:01:59]} 27. cxd3 {[%clk 0:00:54]}  Rd8 {[%clk 0:01:54]} 28. Rf3 {[%clk 0:00:43]}  Bb7 {[%clk 0:01:39]} 29. Qh7 {[%clk 0:00:43]}  Bxe4 {[%clk 0:01:32]} 30. dxe4 {[%clk 0:00:40]}  Qc5+ {[%clk 0:01:10]} 31. Kh2 {[%clk 0:00:40]}  Qc2 {[%clk 0:01:10]} 32. Rg3 {[%clk 0:00:30]}  Qxb1 {[%clk 0:00:57]} 33. Rxg7 {[%clk 0:00:26]}  Rd7 {[%clk 0:00:17]} 34. Qg8+ {[%clk 0:00:21]}  Ke7 {[%clk 0:00:17]} 35. Qxf7+ {[%clk 0:00:22]}  Kd6 {[%clk 0:00:18]} 36. Qxd7+ {[%clk 0:00:23]}  Kc5 {[%clk 0:00:18]} 37. Qc7+ {[%clk 0:00:18]}  Kd4 {[%clk 0:00:16]} 38. Rd7+ {[%clk 0:00:18]}  Ke3 {[%clk 0:00:14]} 39. Qc3+ {[%clk 0:00:17]}  Kxe4 {[%clk 0:00:08]} 40. Qe5# {[%clk 0:00:16]} 1-0


[Site "https://www.chess.com"]

[Event "Titled Tuesday Blitz March 22 Early 2022"]
[White "Brunner, Nicolas"]
[Black "Molina, Roberto Junio Brito"]
[WhiteFideId "620246"]
[BlackFideId "2109450"]
[WhiteElo "2372"]
[BlackElo "2432"]
[Result "1-0"]
[Round "01"]
[TimeControl "180+1"]
[Date "2022.03.22"]
[WhiteClock "0:01:35"]
[BlackClock "0:01:34"]

1. d4 {[%clk 0:02:57]}  d5 {[%clk 0:02:59]} 2. c4 {[%clk 0:02:57]}  c6 {[%clk 0:02:59]} 3. Nf3 {[%clk 0:02:57]}  Nf6 {[%clk 0:02:59]} 4. e3 {[%clk 0:02:55]}  Bf5 {[%clk 0:02:58]} 5. Nc3 {[%clk 0:02:50]}  e6 {[%clk 0:02:59]} 6. Nh4 {[%clk 0:02:48]}  Bg4 {[%clk 0:02:59]} 7. Qb3 {[%clk 0:02:47]}  Qc7 {[%clk 0:02:58]} 8. h3 {[%clk 0:02:46]}  Bh5 {[%clk 0:02:57]} 9. g4 {[%clk 0:02:47]}  Bg6 {[%clk 0:02:58]} 10. Nxg6 {[%clk 0:02:46]}  hxg6 {[%clk 0:02:59]} 11. Bg2 {[%clk 0:02:47]}  Nbd7 {[%clk 0:02:57]} 12. g5 {[%clk 0:02:45]}  Ng8 {[%clk 0:02:52]} 13. Bd2 {[%clk 0:02:40]}  Bd6 {[%clk 0:02:48]} 14. O-O-O {[%clk 0:02:32]}  Qb6 {[%clk 0:02:46]} 15. e4 {[%clk 0:02:26]}  dxc4 {[%clk 0:02:34]} 16. Qxc4 {[%clk 0:02:24]}  e5 {[%clk 0:02:33]} 17. Be3 {[%clk 0:02:22]}  Qc7 {[%clk 0:02:29]} 18. Kb1 {[%clk 0:02:19]}  Ne7 {[%clk 0:02:27]} 19. h4 {[%clk 0:02:12]}  Nb6 {[%clk 0:02:24]} 20. Qb3 {[%clk 0:02:11]}  exd4 {[%clk 0:02:22]} 21. Bxd4 {[%clk 0:02:10]}  Be5 {[%clk 0:02:21]} 22. Bc5 {[%clk 0:02:02]}  Rd8 {[%clk 0:02:13]} 23. Rxd8+ {[%clk 0:01:49]}  Kxd8 {[%clk 0:02:13]} 24. Qxf7 {[%clk 0:01:46]}  Bxc3 {[%clk 0:01:58]} 25. bxc3 {[%clk 0:01:45]}  Qe5 {[%clk 0:01:44]} 26. Rd1+ {[%clk 0:01:44]}  Nd7 {[%clk 0:01:44]} 27. Bh3 {[%clk 0:01:38]}  Qxe4+ {[%clk 0:01:43]} 28. Ka1 {[%clk 0:01:35]}  Qc2 {[%clk 0:01:34]} 1-0


[Site "https://www.chess.com"]

[Event "Titled Tuesday Blitz March 22 Early 2022"]
[White "Bryakin, Mikhail"]
[Black "Toncheva, Nadya"]
[WhiteFideId "4165314"]
[BlackFideId "2924056"]
[WhiteElo "2417"]
[BlackElo "1884"]
[Result "1-0"]
[Round "01"]
[TimeControl "180+1"]
[Date "2022.03.22"]
[WhiteClock "0:01:14"]
[BlackClock "0:00:03"]

1. e4 {[%clk 0:02:54]}  c5 {[%clk 0:02:59]} 2. Nf3 {[%clk 0:02:49]}  d6 {[%clk 0:02:58]} 3. Bb5+ {[%clk 0:02:48]}  Nc6 {[%clk 0:02:57]} 4. O-O {[%clk 0:02:46]}  Bd7 {[%clk 0:02:56]} 5. a4 {[%clk 0:02:45]}  Nf6 {[%clk 0:02:54]} 6. d3 {[%clk 0:02:44]}  g6 {[%clk 0:02:53]} 7. b3 {[%clk 0:02:43]}  Bg7 {[%clk 0:02:53]} 8. Bb2 {[%clk 0:02:43]}  O-O {[%clk 0:02:53]} 9. Nbd2 {[%clk 0:02:43]}  a6 {[%clk 0:02:53]} 10. Bxc6 {[%clk 0:02:43]}  Bxc6 {[%clk 0:02:54]} 11. a5 {[%clk 0:02:43]}  Bb5 {[%clk 0:02:43]} 12. e5 {[%clk 0:02:37]}  Nd7 {[%clk 0:02:39]} 13. Re1 {[%clk 0:02:37]}  e6 {[%clk 0:02:33]} 14. Qc1 {[%clk 0:02:23]}  dxe5 {[%clk 0:02:17]} 15. Nxe5 {[%clk 0:02:18]}  Rc8 {[%clk 0:02:10]} 16. Ndc4 {[%clk 0:02:11]}  Nxe5 {[%clk 0:02:06]} 17. Bxe5 {[%clk 0:02:08]}  Bxc4 {[%clk 0:02:01]} 18. Bxg7 {[%clk 0:02:07]}  Kxg7 {[%clk 0:02:00]} 19. Qb2+ {[%clk 0:02:01]}  Qf6 {[%clk 0:01:23]} 20. Qxf6+ {[%clk 0:01:58]}  Kxf6 {[%clk 0:01:24]} 21. bxc4 {[%clk 0:01:58]}  Rfd8 {[%clk 0:01:21]} 22. Rab1 {[%clk 0:01:58]}  Rd7 {[%clk 0:01:20]} 23. Rb6 {[%clk 0:01:58]}  Rcc7 {[%clk 0:01:18]} 24. f4 {[%clk 0:01:54]}  h5 {[%clk 0:01:16]} 25. Kf2 {[%clk 0:01:53]}  Kf5 {[%clk 0:01:14]} 26. Kf3 {[%clk 0:01:51]}  Kf6 {[%clk 0:01:11]} 27. g3 {[%clk 0:01:50]}  Rd4 {[%clk 0:01:10]} 28. Reb1 {[%clk 0:01:50]}  Rdd7 {[%clk 0:01:10]} 29. h3 {[%clk 0:01:50]}  Ke7 {[%clk 0:01:10]} 30. g4 {[%clk 0:01:47]}  hxg4+ {[%clk 0:01:10]} 31. hxg4 {[%clk 0:01:48]}  Kf6 {[%clk 0:01:11]} 32. Rh1 {[%clk 0:01:48]}  Kg7 {[%clk 0:01:09]} 33. g5 {[%clk 0:01:46]}  Kg8 {[%clk 0:01:09]} 34. Ke3 {[%clk 0:01:44]}  Kg7 {[%clk 0:01:06]} 35. Rh3 {[%clk 0:01:34]}  Kg8 {[%clk 0:00:59]} 36. Rb1 {[%clk 0:01:31]}  Kf8 {[%clk 0:00:43]} 37. Rh8+ {[%clk 0:01:31]}  Ke7 {[%clk 0:00:42]} 38. Rb8 {[%clk 0:01:30]}  Kd6 {[%clk 0:00:37]} 39. Ke4 {[%clk 0:01:29]}  Ke7 {[%clk 0:00:33]} 40. c3 {[%clk 0:01:29]}  Kd6 {[%clk 0:00:30]} 41. Rb6+ {[%clk 0:01:22]}  Ke7 {[%clk 0:00:30]} 42. Ke3 {[%clk 0:01:23]}  f6 {[%clk 0:00:08]} 43. Ke4 {[%clk 0:01:22]}  fxg5 {[%clk 0:00:04]} 44. fxg5 {[%clk 0:01:23]}  Kf7 {[%clk 0:00:04]} 45. Rh8 {[%clk 0:01:21]}  Kg7 {[%clk 0:00:04]} 46. Ra8 {[%clk 0:01:18]}  Kf7 {[%clk 0:00:04]} 47. Rb2 {[%clk 0:01:16]}  Re7 {[%clk 0:00:05]} 48. Rh2 {[%clk 0:01:15]}  Kg7 {[%clk 0:00:05]} 49. Rah8 {[%clk 0:01:15]}  Kf7 {[%clk 0:00:03]} 50. R2h7# {[%clk 0:01:14]} 1-0


[Site "https://www.chess.com"]